bitfinex-derivatives/quotes_BTCF0:USTF0_20240824
["timestamp","ask_amount","ask_price","bid_price","bid_amount"]
[1724478066023,1.89014746,63939.0,63938.0,2.49146876]
[1724478066621,1.79645988,63939.0,63938.0,2.49146876]
[1724478067411,1.89011466,63939.0,63938.0,2.49146876]
[1724478067608,1.79645988,63939.0,63938.0,2.49146876]
[1724478068319,1.88229084,63939.0,63938.0,1.53576298]
[1724478068512,1.94126393,63939.0,63938.0,1.05511138]
[1724478068713,1.94126393,63939.0,63938.0,0.81243938]
[1724478068913,1.94126393,63939.0,63938.0,0.71367838]
[1724478069320,1.94126393,63939.0,63938.0,0.63380138]
[1724478069622,1.94126393,63939.0,63938.0,0.55421538]
[1724478070833,1.86205715,63939.0,63938.0,0.55421538]
[1724478071319,1.93832465,63939.0,63938.0,0.55421538]
[1724478072013,2.10997222,63939.0,63938.0,0.55421538]
[1724478073020,2.01646865,63939.0,63938.0,0.55421538]
[1724478073415,2.10994338,63939.0,63938.0,0.55421538]
[1724478074826,1.53832465,63939.0,63938.0,0.55421538]
[1724478076129,0.84912465,63939.0,63938.0,0.55421538]
[1724478076422,0.823784,63939.0,63938.0,0.55421538]
[1724478088521,0.462984,63939.0,63938.0,0.55421538]
[1724478090432,0.54086355,63939.0,63938.0,0.55421538]
[1724478091633,0.18006355,63939.0,63938.0,0.55421538]
[1724478092026,0.54086355,63939.0,63938.0,0.55421538]
[1724478094332,1.17751776,63939.0,63938.0,0.55421538]
[1724478094836,1.152184,63939.0,63938.0,0.55421538]
[1724478095026,1.17751894,63939.0,63938.0,0.55421538]
[1724478096640,0.70831894,63939.0,63938.0,0.55421538]
[1724478098339,1.06911894,63939.0,63938.0,0.55421538]
[1724478099438,1.15695741,63939.0,63938.0,0.55421538]
[1724478099932,1.21619519,63939.0,63938.0,0.55421538]
[1724478100533,1.20419519,63939.0,63938.0,0.55421538]
[1724478100833,1.21819519,63939.0,63938.0,0.55421538]
[1724478101032,1.15895741,63939.0,63938.0,0.55421538]
[1724478104430,1.13362247,63939.0,63938.0,0.55421538]
[1724478104739,1.21860722,63939.0,63938.0,0.55421538]
[1724478110534,1.21834153,63939.0,63938.0,0.55421538]
[1724478114237,1.21833825,63939.0,63938.0,0.55421538]
[1724478117439,1.21825556,63939.0,63938.0,0.55421538]
[1724478119142,0.8531212,63939.0,63938.0,0.55421538]
[1724478119543,0.74964,63939.0,63938.0,0.55421538]
[1724478119744,0.75279311,63939.0,63938.0,0.55421538]
[1724478120039,0.67474,63939.0,63938.0,0.55421538]
[1724478121443,0.75279311,63939.0,63938.0,0.55421538]
[1724478121646,0.67474,63939.0,63938.0,0.55421538]
[1724478122052,0.31394,63939.0,63938.0,0.55421538]
[1724478123847,0.078141,63942.0,63938.0,0.55421538]
[1724478124545,0.3608,63943.0,63938.0,0.55421538]
[1724478124748,0.06239741,63939.0,63938.0,0.55421538]
[1724478124948,0.3608,63943.0,63938.0,0.55421538]
[1724478125458,0.028,63942.0,63938.0,0.55621538]
[1724478125955,0.014,63939.0,63938.0,0.55621538]
[1724478126454,0.462939,63943.0,63938.0,0.55621538]
[1724478128148,0.012,63939.0,63938.0,0.55521538]
[1724478128348,0.024,63939.0,63938.0,0.55621538]
[1724478128857,0.012,63939.0,63938.0,0.55621538]
[1724478129151,0.07814,63942.0,63938.0,0.55621538]
[1724478129554,0.012,63939.0,63938.0,0.55621538]
[1724478129852,0.012,63939.0,63938.0,0.55521538]
[1724478130052,0.024,63939.0,63938.0,0.55621538]
[1724478135856,0.07074993,63939.0,63938.0,0.55621538]
[1724478136057,0.07074993,63939.0,63938.0,1.50356038]
[1724478136058,0.024,63939.0,63938.0,1.50356038]
[1724478136355,0.024,63939.0,63938.0,1.55039834]
[1724478136663,0.07074993,63939.0,63938.0,1.55039834]
[1724478137561,0.07074993,63939.0,63938.0,1.15039834]
[1724478137759,0.024,63939.0,63938.0,1.15039834]
[1724478138456,0.024,63939.0,63938.0,1.10356038]
[1724478141061,0.04674303,63944.0,63939.0,0.4692]
[1724478141263,0.04674303,63947.0,63944.0,0.22]
[1724478141567,0.04674303,63948.0,63945.0,0.142]
[1724478141859,0.078133,63948.0,63945.0,0.220136]
[1724478142058,0.12487603,63948.0,63945.0,0.220136]
[1724478142256,0.04674303,63947.0,63946.0,0.078135]
[1724478142457,0.014,63947.0,63946.0,0.078135]
[1724478142763,0.028,63947.0,63946.0,0.078135]
[1724478143267,0.04697338,63956.0,63947.0,0.46912]
[1724478143567,0.00023454,63956.0,63955.0,0.22]
[1724478143954,0.04673884,63961.0,63955.0,0.68908]
[1724478144172,0.04673884,63962.0,63960.0,0.078117]
[1724478144354,0.04673884,63963.0,63961.0,0.0914]
[1724478144759,0.04673884,63963.0,63962.0,0.078115]
[1724478144961,0.04673884,63965.0,63962.0,0.078115]
[1724478145161,0.04673884,63966.0,63962.0,0.078115]
[1724478145356,0.3608,63967.0,63962.0,0.078115]
[1724478146367,0.3608,63967.0,63963.0,0.0464]
[1724478146964,0.04697338,63969.0,63963.0,0.0464]
[1724478147363,0.00023454,63969.0,63963.0,0.0464]
[1724478147763,0.04697338,63969.0,63963.0,0.0464]
[1724478148370,0.00023454,63969.0,63963.0,0.0464]
[1724478148559,0.04697338,63969.0,63963.0,0.0464]
[1724478148964,0.04697338,63969.0,63963.0,0.0484]
[1724478149374,0.00023454,63969.0,63963.0,0.0474]
[1724478149674,0.00023454,63969.0,63963.0,0.0484]
[1724478154580,0.04697338,63969.0,63963.0,0.002]
[1724478154777,0.04673884,63968.0,63963.0,0.002]
[1724478154977,0.04697338,63969.0,63963.0,0.002]
[1724478155375,0.04673884,63968.0,63963.0,0.002]
[1724478155767,0.078113,63964.0,63963.0,0.001]
[1724478155976,0.078113,63964.0,63963.0,0.002]
[1724478161075,0.3608,63966.0,63963.0,0.002]
[1724478161878,0.12484884,63967.0,63963.0,0.002]
[1724478162072,0.078113,63964.0,63963.0,0.002]
[1724478162570,0.12485184,63964.0,63963.0,0.002]
[1724478162971,0.12485184,63964.0,63963.0,0.001]
[1724478163172,0.12485184,63964.0,63963.0,0.002]
[1724478163480,0.078113,63964.0,63963.0,0.002]
[1724478163676,0.12477685,63964.0,63963.0,0.002]
[1724478163980,0.12477767,63964.0,63963.0,0.002]
[1724478164573,0.078113,63964.0,63963.0,0.001]
[1724478164773,0.078113,63964.0,63963.0,0.002]
[1724478165178,0.12479104,63964.0,63963.0,0.002]
[1724478165481,0.078113,63964.0,63963.0,0.002]
[1724478167681,0.48485311,63966.0,63956.0,0.35553454]
[1724478167682,0.078117,63961.0,63956.0,0.35553454]
[1724478168876,0.078117,63961.0,63956.0,0.35653454]
[1724478169072,0.078117,63961.0,63956.0,0.002]
[1724478169277,0.438917,63961.0,63956.0,0.002]
[1724478169479,0.3608,63961.0,63956.0,0.002]
[1724478170378,0.15616711,63963.0,63956.0,0.002]
[1724478170576,0.3608,63961.0,63956.0,0.002]
[1724478171483,0.3608,63961.0,63956.0,0.04868044]
[1724478172281,0.3608,63961.0,63956.0,0.04768044]
[1724478172482,0.3608,63961.0,63957.0,0.04668044]
[1724478173385,0.3608,63961.0,63958.0,0.04668044]
[1724478173587,0.15616911,63962.0,63957.0,0.04668044]
[1724478173782,0.3608,63961.0,63957.0,0.04668044]
[1724478173983,0.3608,63961.0,63957.0,0.04768044]
[1724478174895,0.3608,63961.0,63958.0,0.04668044]
[1724478175183,0.3608,63961.0,63960.0,0.04668044]
[1724478175595,0.078116,63962.0,63960.0,0.04668044]
[1724478176286,0.078116,63962.0,63959.0,0.04668044]
[1724478176482,0.078116,63962.0,63960.0,0.04668044]
[1724478176683,0.078116,63962.0,63961.0,0.04668044]
[1724478177886,0.078116,63962.0,63961.0,0.04768044]
[1724478178684,0.078116,63962.0,63961.0,0.04868044]
[1724478179280,0.00677191,63963.0,63961.0,0.002]
[1724478179592,0.07805311,63964.0,63961.0,0.002]
[1724478180382,0.07805311,63964.0,63961.0,0.04868044]
[1724478183187,0.07805311,63963.0,63961.0,0.002]
[1724478184287,0.07805311,63963.0,63961.0,0.001]
[1724478184484,0.36739651,63966.0,63961.0,0.04868044]
[1724478184485,0.07805311,63962.0,63961.0,0.04868044]
[1724478184686,0.07805311,63962.0,63961.0,0.002]
[1724478185600,0.078114,63963.0,63961.0,0.002]
[1724478185896,0.07808102,63962.0,63961.0,0.04780658]
[1724478186091,0.07808102,63962.0,63961.0,0.04880658]
[1724478186494,0.0253222,63962.0,63961.0,0.002]
[1724478197014,0.1034372,63962.0,63961.0,0.002]
[1724478203316,0.10343732,63962.0,63961.0,0.002]
[1724478205517,0.02532232,63962.0,63961.0,0.002]
[1724478206016,0.11899437,63963.0,63961.0,0.002]
[1724478206222,0.02532232,63962.0,63961.0,0.002]
[1724478206716,0.11899437,63963.0,63961.0,0.002]
[1724478207020,0.11899437,63963.0,63961.0,0.00857184]
[1724478207319,0.11899437,63963.0,63961.0,0.002]
[1724478207715,0.3608,63964.0,63961.0,0.002]
[1724478207716,0.02532232,63962.0,63961.0,0.002]
[1724478208108,0.02532232,63963.0,63961.0,0.002]
[1724478208315,0.02532232,63962.0,63961.0,0.002]
[1724478208515,0.02532232,63962.0,63961.0,0.04880658]
[1724478208716,0.02532232,63963.0,63961.0,0.04880658]
[1724478209414,0.02532232,63963.0,63961.0,0.04780658]
[1724478209622,0.02532232,63963.0,63961.0,0.04880658]
[1724478209925,0.02532232,63963.0,63962.0,0.12492158]
[1724478210327,0.02532232,63963.0,63962.0,0.078115]
[1724478211117,0.02532232,63963.0,63962.0,0.079115]
[1724478211330,0.3608,63964.0,63962.0,0.12692608]
[1724478211718,0.02532188,63963.0,63962.0,0.080115]
[1724478212018,0.02532188,63963.0,63962.0,0.12692794]
[1724478212723,0.02532188,63963.0,63962.0,0.12592794]
[1724478213026,0.02532188,63963.0,63962.0,0.12692794]
[1724478214321,0.10026856,63966.0,63962.0,0.12692794]
[1724478214322,0.3608,63964.0,63962.0,0.12692794]
[1724478214528,0.07810632,63963.0,63962.0,0.080115]
[1724478215632,0.07810632,63963.0,63962.0,0.12690908]
[1724478216118,0.07810632,63963.0,63962.0,0.080115]
[1724478216430,0.078114,63963.0,63962.0,0.002]
[1724478216617,0.078114,63963.0,63962.0,0.04779215]
[1724478216819,0.10343548,63963.0,63962.0,0.04879215]
[1724478217220,0.15620907,63963.0,63962.0,0.04879215]
[1724478219618,0.07809507,63964.0,63962.0,0.002]
[1724478219825,0.07809507,63965.0,63962.0,0.002]
[1724478220028,0.07809507,63965.0,63964.0,0.04678522]
[1724478222530,0.07809507,63965.0,63964.0,0.04778522]
[1724478223233,0.07809507,63965.0,63964.0,0.04878522]
[1724478223430,0.07809507,63965.0,63964.0,0.002]
[1724478223733,0.07809507,63965.0,63964.0,0.04878522]
[1724478224134,0.07809507,63965.0,63964.0,0.002]
[1724478227230,0.16280258,63966.0,63964.0,0.002]
[1724478228635,0.07809507,63965.0,63964.0,0.002]
[1724478228838,0.08470751,63966.0,63964.0,0.002]
[1724478229038,0.08470751,63966.0,63964.0,0.001]
[1724478229342,0.08470751,63966.0,63964.0,0.002]
[1724478229643,0.08470751,63966.0,63964.0,0.001]
[1724478229836,0.08470751,63966.0,63964.0,0.002]
[1724478233735,0.07809507,63965.0,63964.0,0.002]
[1724478234439,0.07809507,63965.0,63964.0,0.04876854]
[1724478236843,0.07809507,63965.0,63964.0,0.002]
[1724478242446,0.08470751,63966.0,63964.0,0.002]
[1724478243641,0.08470751,63966.0,63964.0,0.001]
[1724478243847,0.08470751,63966.0,63964.0,0.002]
[1724478245548,0.08470751,63966.0,63965.0,0.04679758]
[1724478245845,0.11002802,63966.0,63965.0,0.04679758]
[1724478246757,0.11002802,63966.0,63965.0,0.04779758]
[1724478247951,0.11002802,63966.0,63965.0,0.04879758]
[1724478248938,0.00023454,63969.0,63965.0,0.002]
[1724478248939,0.07835651,63969.0,63965.0,0.002]
[1724478249148,0.06268792,63969.0,63968.0,0.64314276]
[1724478249348,0.00023454,63969.0,63968.0,0.658908]
[1724478250448,0.00023454,63969.0,63968.0,0.659908]
[1724478251250,0.04704283,63969.0,63968.0,0.659908]
[1724478251840,0.04704283,63969.0,63968.0,0.660908]
[1724478252243,0.00023454,63969.0,63968.0,0.660908]
[1724478255456,0.00023454,63969.0,63968.0,1.129908]
[1724478257555,0.00023454,63969.0,63968.0,0.660908]
[1724478258460,0.00023454,63969.0,63968.0,0.300108]
[1724478258661,0.00023454,63969.0,63968.0,0.660908]
[1724478259455,0.00023454,63969.0,63968.0,0.72310529]
[1724478259652,0.06904122,63979.0,63974.0,0.078101]
[1724478259653,0.04674034,63975.0,63974.0,0.078101]
[1724478259854,0.04674034,63975.0,63974.0,0.12474864]
[1724478260048,0.04673991,63975.0,63974.0,0.04664764]
[1724478260357,0.04673991,63976.0,63975.0,0.0781]
[1724478261657,0.04673991,63976.0,63975.0,0.0801]
[1724478263858,0.04673991,63977.0,63975.0,0.0801]
[1724478266361,0.04673991,63977.0,63975.0,0.08686147]
[1724478268358,0.04673991,63976.0,63975.0,0.08686147]
[1724478269361,0.04673991,63976.0,63975.0,0.08586147]
[1724478269571,0.04673991,63976.0,63975.0,0.08686147]
[1724478269960,0.04673991,63977.0,63975.0,0.08686147]
[1724478270762,0.12483491,63979.0,63976.0,0.078098]
[1724478270964,0.12483491,63979.0,63976.0,0.221298]
[1724478271164,0.04673991,63979.0,63977.0,0.078096]
[1724478272470,0.04673991,63980.0,63977.0,0.078096]
[1724478273055,0.08477116,63981.0,63977.0,0.078096]
[1724478273056,0.04673991,63979.0,63977.0,0.078096]
[1724478274070,0.04673991,63979.0,63977.0,0.080096]
[1724478275166,0.04673991,63978.0,63977.0,0.080096]
[1724478275365,0.14054849,63980.0,63977.0,0.080096]
[1724478275671,0.06245449,63979.0,63977.0,0.080096]
[1724478276065,0.06245449,63978.0,63977.0,0.080096]
[1724478276264,0.06245449,63978.0,63977.0,0.079096]
[1724478276468,0.08480013,63981.0,63977.0,0.002]
[1724478277078,0.07812197,63979.0,63977.0,0.001]
[1724478277269,0.07812197,63979.0,63977.0,0.002]
[1724478277570,0.07812197,63978.0,63977.0,0.002]
[1724478277771,0.15621797,63978.0,63977.0,0.002]
[1724478278172,0.10341209,63978.0,63977.0,0.002]
[1724478279173,0.10341209,63978.0,63977.0,0.001]
[1724478279375,0.10341209,63978.0,63977.0,0.002]
[1724478281570,0.06244733,63978.0,63977.0,0.002]
[1724478281768,0.06244733,63979.0,63978.0,0.078096]
[1724478281972,0.06244733,63980.0,63979.0,0.078095]
[1724478282174,0.06244733,63981.0,63980.0,0.078093]
[1724478283476,0.06244733,63981.0,63980.0,0.079093]
[1724478284268,0.06244733,63981.0,63980.0,0.080093]
[1724478284878,0.06268187,63982.0,63981.0,0.078092]
[1724478286072,0.06268187,63982.0,63981.0,0.12580181]
[1724478286268,0.06268187,63982.0,63981.0,0.12680181]
[1724478286668,0.06268187,63982.0,63981.0,0.080092]
[1724478287070,0.06268187,63982.0,63981.0,0.12679805]
[1724478288172,0.00023454,63982.0,63981.0,0.12679805]
[1724478290577,0.00023454,63982.0,63981.0,0.080092]
[1724478290877,0.00023454,63982.0,63981.0,0.12679116]
[1724478291181,0.00023454,63982.0,63981.0,0.080092]
[1724478294280,0.00023454,63982.0,63981.0,0.14234353]
[1724478298281,0.00023454,63982.0,63981.0,0.440892]
[1724478299683,0.04678634,63986.0,63981.0,0.440892]
[1724478299882,0.04678634,63986.0,63985.0,0.06222146]
[1724478300388,0.06244733,63990.0,63989.0,0.078082]
[1724478300786,0.07806755,63997.0,63990.0,0.078081]
[1724478300787,0.42317204,63991.0,63990.0,0.078081]
[1724478301688,0.3608,63991.0,63990.0,0.078081]
[1724478302890,0.3608,63991.0,63990.0,0.12472546]
[1724478303083,0.3608,63991.0,63990.0,0.12572546]
[1724478303280,0.3608,63991.0,63990.0,0.12672546]
[1724478304292,0.3608,63991.0,63990.0,0.080081]
[1724478304694,0.3608,63991.0,63990.0,0.08680517]
[1724478305596,0.06237204,63994.0,63992.0,0.078078]
[1724478306692,0.06237204,63994.0,63993.0,0.078078]
[1724478307592,0.06924601,63995.0,63993.0,0.078078]
[1724478308192,0.06237204,63994.0,63993.0,0.078078]
[1724478308389,0.06237204,63995.0,63993.0,0.078078]
[1724478308586,0.06237204,63995.0,63993.0,0.079078]
[1724478308796,0.06237204,63995.0,63993.0,0.080078]
[1724478309100,0.06237204,63994.0,63993.0,0.080078]
[1724478309497,0.06237204,63994.0,63993.0,0.079078]
[1724478309902,0.06237204,63994.0,63993.0,0.080078]
[1724478311101,0.00700034,63996.0,63993.0,0.080078]
[1724478320292,0.08506789,63996.0,63993.0,0.080078]
[1724478322002,0.44586789,63996.0,63993.0,0.080078]
[1724478322207,0.07806755,63995.0,63993.0,0.080078]
[1724478323097,0.36780034,63996.0,63993.0,0.080078]
[1724478323098,0.08506789,63996.0,63993.0,0.080078]
[1724478325195,0.07806755,63995.0,63993.0,0.080078]
[1724478325600,0.07806755,63995.0,63993.0,0.079078]
[1724478325803,0.07806755,63995.0,63993.0,0.080078]
[1724478326503,0.07806755,63995.0,63993.0,0.079078]
[1724478326698,0.07806755,63995.0,63993.0,0.080078]
[1724478327506,0.07806755,63994.0,63993.0,0.080078]
[1724478327708,0.07806755,63994.0,63993.0,0.002]
[1724478328204,0.07806755,63994.0,63993.0,0.04864446]
[1724478328611,0.08507434,63996.0,63993.0,0.04864446]
[1724478328818,0.02530838,63995.0,63993.0,0.04864446]
[1724478329109,0.08506896,63996.0,63994.0,0.078076]
[1724478329304,0.00700034,63996.0,63995.0,0.04670176]
[1724478329811,0.03230844,63996.0,63995.0,0.04670176]
[1724478331405,0.03230844,63996.0,63994.0,0.04670176]
[1724478331606,0.00700034,63996.0,63995.0,0.002]
[1724478331812,0.0323085,63996.0,63995.0,0.002]
[1724478332812,0.10067239,63996.0,63995.0,0.002]
[1724478333111,0.12598055,63996.0,63995.0,0.001]
[1724478333812,0.0323085,63996.0,63995.0,0.001]
[1724478334601,0.10069493,63996.0,63995.0,0.001]
[1724478334902,0.0323085,63996.0,63995.0,0.001]
[1724478335306,0.0323085,63996.0,63995.0,0.002]
[1724478335307,0.10069445,63996.0,63995.0,0.002]
[1724478335610,0.0323085,63996.0,63995.0,0.002]
[1724478335806,0.0323085,63996.0,63995.0,0.04870176]
[1724478336011,0.0323085,63996.0,63995.0,0.002]
[1724478336510,0.0323095,63996.0,63995.0,0.04870176]
[1724478337218,0.1103835,63996.0,63995.0,0.04870176]
[1724478337718,0.1103835,63996.0,63995.0,0.002]
[1724478338811,0.4711835,63996.0,63995.0,0.002]
[1724478343317,0.4711835,63996.0,63995.0,0.04870176]
[1724478344521,0.4711835,63996.0,63995.0,0.002]
[1724478346916,0.3931095,63996.0,63995.0,0.002]
[1724478350521,0.48680186,63996.0,63995.0,0.002]
[1724478350830,0.4711835,63996.0,63995.0,0.002]
[1724478351030,0.56486108,63996.0,63995.0,0.002]
[1724478351227,0.47118374,63996.0,63995.0,0.002]
[1724478355731,0.52393395,63996.0,63995.0,0.002]
[1724478355926,0.44587434,63996.0,63995.0,0.04869484]
[1724478356620,0.44587434,63996.0,63995.0,0.002]
[1724478356922,0.47118279,63996.0,63995.0,0.002]
[1724478357122,0.44587434,63996.0,63995.0,0.002]
[1724478357622,0.36780034,63996.0,63995.0,0.002]
[1724478358130,0.44585633,63996.0,63995.0,0.080075]
[1724478358431,0.36780034,63996.0,63995.0,0.12676378]
[1724478358627,0.36780034,63996.0,63995.0,0.080075]
[1724478358822,0.00700034,63996.0,63995.0,0.080075]
[1724478360624,0.00700034,63996.0,63995.0,0.08695775]
[1724478362920,0.00700034,63996.0,63995.0,0.13363863]
[1724478375543,0.00700034,63996.0,63995.0,0.08695775]
[1724478375742,0.00700034,63996.0,63995.0,0.13362936]
[1724478376530,0.00700034,63996.0,63995.0,0.08695775]
[1724478378935,0.00700034,63996.0,63995.0,0.080075]
[1724478384852,0.08505633,63996.0,63995.0,0.080075]
[1724478385041,0.08505633,63996.0,63995.0,0.12677302]
[1724478385246,0.08505633,63996.0,63995.0,0.080075]
[1724478385549,0.00700034,63996.0,63995.0,0.080075]
[1724478385736,0.08508244,63996.0,63995.0,0.080075]
[1724478387044,0.08508695,63996.0,63995.0,0.080075]
[1724478388348,0.00700034,63996.0,63995.0,0.080075]
[1724478388551,0.08509528,63996.0,63995.0,0.080075]
[1724478389035,0.00700034,63996.0,63995.0,0.080075]
[1724478390749,0.03230799,63996.0,63995.0,0.080075]
[1724478391050,0.00700034,63996.0,63995.0,0.080075]
[1724478391643,0.03230808,63996.0,63995.0,0.080075]
[1724478391843,0.03230816,63996.0,63995.0,0.080075]
[1724478392945,0.00700034,63996.0,63995.0,0.080075]
[1724478393339,0.03230811,63996.0,63995.0,0.080075]
[1724478393539,0.03230816,63996.0,63995.0,0.080075]
[1724478394645,0.00700034,63996.0,63995.0,0.080075]
[1724478394843,0.03230786,63996.0,63995.0,0.080075]
[1724478395248,0.08509484,63996.0,63995.0,0.080075]
[1724478395445,0.08509484,63996.0,63995.0,0.14229541]
[1724478397043,0.08509484,63996.0,63995.0,0.080075]
[1724478397242,0.08509484,63996.0,63995.0,0.14229541]
[1724478398053,0.08509484,63996.0,63995.0,0.080075]
[1724478398358,0.08509502,63996.0,63995.0,0.080075]
[1724478399451,0.08509502,63996.0,63995.0,0.14229541]
[1724478401058,0.08509502,63996.0,63995.0,0.080075]
[1724478403660,0.08509379,63996.0,63995.0,0.080075]
[1724478404952,0.08509332,63996.0,63995.0,0.080075]
[1724478405158,0.08509339,63996.0,63995.0,0.080075]
[1724478406462,0.08509341,63996.0,63995.0,0.080075]
[1724478407966,0.08509322,63996.0,63995.0,0.080075]
[1724478408174,0.00700034,63996.0,63995.0,0.080075]
[1724478408358,0.03230786,63996.0,63995.0,0.080075]
[1724478408562,0.00700034,63996.0,63995.0,0.080075]
[1724478408963,0.08509207,63996.0,63995.0,0.080075]
[1724478409165,0.00700034,63996.0,63995.0,0.080075]
[1724478409369,0.45527758,64000.0,63995.0,1.31631417]
[1724478409370,0.06246466,63998.0,63995.0,1.31631417]
[1724478409665,0.0008,64000.0,63995.0,1.31631417]
[1724478409666,0.04681796,64000.0,63997.0,0.5808]
[1724478409865,0.06246466,64002.0,63998.0,0.0951]
[1724478410061,0.06246466,64003.0,64001.0,0.22]
[1724478410260,0.00680506,64010.0,64003.0,0.078065]
[1724478410261,0.06246466,64004.0,64003.0,0.078065]
[1724478410460,0.36164,64014.0,64003.0,0.078065]
[1724478410461,0.06239476,64005.0,64004.0,0.078064]
[1724478410760,0.04679238,64006.0,64004.0,0.22]
[1724478411269,0.04679238,64006.0,64005.0,0.46872]
[1724478411459,0.04702692,64008.0,64007.0,0.07806]
[1724478411660,0.04702692,64008.0,64007.0,0.14015993]
[1724478412057,0.04702692,64008.0,64007.0,0.07806]
[1724478412465,0.00023454,64008.0,64007.0,0.07806]
[1724478413055,0.00023454,64008.0,64007.0,0.07906]
[1724478413767,0.43909354,64008.0,64007.0,0.002]
[1724478414271,0.44568814,64008.0,64007.0,0.002]
[1724478414862,0.08488814,64008.0,64007.0,0.002]
[1724478415569,0.07829354,64008.0,64007.0,0.002]
[1724478418367,1.04971454,64008.0,63999.0,0.04655765]
[1724478418568,0.42311298,64000.0,63997.0,0.04655765]
[1724478418869,0.06231298,63998.0,63996.0,0.00023454]
[1724478419684,4e-05,63997.0,63996.0,0.04679219]
[1724478420465,4e-05,63997.0,63996.0,0.00123454]
[1724478420970,4e-05,63997.0,63996.0,0.00023454]
[1724478421169,4e-05,63997.0,63996.0,0.00123454]
[1724478421369,4e-05,63997.0,63996.0,0.00223454]
[1724478423178,0.06235298,63997.0,63996.0,0.00223454]
[1724478426880,4e-05,63997.0,63996.0,0.04879219]
[1724478427266,4e-05,63997.0,63996.0,0.00223454]
[1724478427570,4e-05,63997.0,63996.0,0.04881794]
[1724478428173,4e-05,63997.0,63996.0,0.00223454]
[1724478428370,4e-05,63997.0,63996.0,0.08030854]
[1724478429371,4e-05,63997.0,63996.0,0.12689194]
[1724478429776,4e-05,63997.0,63996.0,0.08030854]
[1724478434479,0.06235298,63997.0,63996.0,0.08030854]
[1724478437574,4e-05,63997.0,63996.0,0.00223454]
[1724478438687,0.14042598,63997.0,63996.0,0.00223454]
[1724478440186,0.10342259,63997.0,63996.0,0.00223454]
[1724478440391,0.10342295,63997.0,63996.0,0.00223454]
[1724478441083,0.10342338,63997.0,63996.0,0.00223454]
[1724478441286,0.078081,63991.0,63985.0,0.3253]
[1724478441483,0.3608,63989.0,63984.0,0.04663691]
[1724478441791,0.3608,63989.0,63978.0,0.00013949]
[1724478441792,0.078094,63980.0,63978.0,0.00013949]
[1724478441981,0.38611814,63979.0,63978.0,0.00013949]
[1724478442191,0.3608,63979.0,63978.0,0.00013949]
[1724478442493,0.4388022,63979.0,63978.0,0.00013949]
[1724478442782,0.36084,63979.0,63978.0,0.00013949]
[1724478443883,0.36084,63979.0,63978.0,0.00313949]
[1724478444282,0.36084,63979.0,63978.0,0.00613949]
[1724478444488,0.36756077,63979.0,63978.0,0.00613949]
[1724478446582,0.42305667,63979.0,63978.0,0.00613949]
[1724478446895,0.36084,63979.0,63978.0,0.00613949]
[1724478449087,0.40748705,63979.0,63978.0,0.00613949]
[1724478449286,0.36084,63979.0,63978.0,0.00613949]
[1724478449489,0.40748758,63979.0,63978.0,0.00613949]
[1724478449707,0.36084,63979.0,63978.0,0.00613949]
[1724478454892,4e-05,63979.0,63978.0,0.00613949]
[1724478456987,0.078135,63979.0,63978.0,0.00613949]
[1724478463092,4e-05,63979.0,63978.0,0.00613949]
[1724478464714,0.04668758,63979.0,63978.0,0.00613949]
[1724478465703,4e-05,63979.0,63978.0,0.00613949]
[1724478468403,0.04678618,63979.0,63978.0,0.00613949]
[1724478468595,4e-05,63979.0,63978.0,0.00613949]
[1724478469500,0.06225667,63979.0,63978.0,0.00613949]
[1724478470002,0.06225667,63979.0,63978.0,0.01285131]
[1724478470197,4e-05,63979.0,63978.0,0.00613949]
[1724478471300,0.06225667,63979.0,63978.0,0.06832204]
[1724478471504,0.06225667,63979.0,63978.0,0.00613949]
[1724478471808,4e-05,63979.0,63978.0,0.00613949]
[1724478472005,4e-05,63979.0,63978.0,0.06832204]
[1724478472506,4e-05,63979.0,63978.0,0.00613949]
[1724478472901,0.06225667,63979.0,63978.0,0.06832204]
[1724478473204,4e-05,63979.0,63978.0,0.06832204]
[1724478473907,4e-05,63979.0,63978.0,0.00613949]
[1724478474501,4e-05,63979.0,63978.0,0.07508119]
[1724478474711,4e-05,63979.0,63978.0,0.0684369]
[1724478475208,0.06225667,63979.0,63978.0,0.00613949]
[1724478475707,4e-05,63979.0,63978.0,0.0684369]
[1724478475909,4e-05,63979.0,63978.0,0.00613949]
[1724478476104,4e-05,63979.0,63978.0,0.06843443]
[1724478477504,0.06225667,63979.0,63978.0,0.06843443]
[1724478477706,4e-05,63979.0,63978.0,0.06843443]
[1724478478408,4e-05,63979.0,63978.0,0.00613949]
[1724478478596,4e-05,63979.0,63978.0,0.14653195]
[1724478478802,4e-05,63979.0,63978.0,0.15317054]
[1724478479109,0.078135,63979.0,63978.0,0.08423549]
[1724478485607,0.078135,63979.0,63978.0,0.00613949]
[1724478489105,0.10345182,63979.0,63978.0,0.00613949]
[1724478491706,0.15615243,63979.0,63978.0,0.00613949]
[1724478492713,0.078135,63979.0,63978.0,0.00613949]
[1724478493613,0.15615243,63979.0,63978.0,0.00613949]
[1724478494215,0.078135,63979.0,63978.0,0.00613949]
[1724478495107,0.15615243,63979.0,63978.0,0.00613949]
[1724478495307,0.078135,63979.0,63978.0,0.00613949]
[1724478495513,0.15615243,63979.0,63978.0,0.00613949]
[1724478498014,0.51695243,63979.0,63978.0,0.00613949]
[1724478498514,0.15615243,63979.0,63978.0,0.00613949]
[1724478498707,0.438935,63979.0,63978.0,0.00613949]
[1724478498913,0.51695243,63979.0,63978.0,0.00613949]
[1724478499111,0.438935,63979.0,63978.0,0.00613949]
[1724478499521,0.46425155,63979.0,63978.0,0.00613949]
[1724478501820,0.46425116,63979.0,63978.0,0.00613949]
[1724478502018,0.51693206,63979.0,63978.0,0.00613949]
[1724478502319,0.51693225,63979.0,63978.0,0.00613949]
[1724478502519,0.438935,63979.0,63978.0,0.00613949]
[1724478503217,0.46425144,63979.0,63978.0,0.00613949]
[1724478503722,0.438935,63979.0,63978.0,0.00613949]
[1724478504021,0.43884424,63979.0,63978.0,0.00613949]
[1724478504523,0.36084,63979.0,63978.0,0.00613949]
[1724478506424,0.38615619,63979.0,63978.0,0.00613949]
[1724478507723,0.02535619,63979.0,63978.0,0.00613949]
[1724478508120,0.38615619,63979.0,63978.0,0.00613949]
[1724478508621,0.38615565,63979.0,63978.0,0.00613949]
[1724478509023,0.02535565,63979.0,63978.0,0.00613949]